[Event "Titled Tuesday Blitz March 21 Early 2023"]
[White "Villalba, Marcelo"]
[Black "Krysa, Leandro"]
[WhiteFideId "3701859"]
[BlackFideId "116807"]
[WhiteElo "2191"]
[BlackElo "2485"]
[Result "1/2-1/2"]
[Round "06"]
[TimeControl "180+2"]
[Date "2023.03.21"]
[WhiteClock "0:00:04"]
[BlackClock "0:00:04"]

1. e4 {[%clk 0:03:00]}  c5 {[%clk 0:03:00]} 2. Nf3 {[%clk 0:03:00]}  Nc6 {[%clk 0:03:00]} 3. Nc3 {[%clk 0:02:59]}  d6 {[%clk 0:03:00]} 4. d4 {[%clk 0:02:56]}  cxd4 {[%clk 0:03:01]} 5. Nxd4 {[%clk 0:02:57]}  Nf6 {[%clk 0:03:01]} 6. Nb3 {[%clk 0:02:55]}  g6 {[%clk 0:02:54]} 7. Be2 {[%clk 0:02:54]}  Bg7 {[%clk 0:02:54]} 8. O-O {[%clk 0:02:53]}  O-O {[%clk 0:02:55]} 9. Bg5 {[%clk 0:02:51]}  Be6 {[%clk 0:02:54]} 10. Kh1 {[%clk 0:02:51]}  Rc8 {[%clk 0:02:52]} 11. f4 {[%clk 0:02:51]}  Na5 {[%clk 0:02:48]} 12. f5 {[%clk 0:02:48]}  Bc4 {[%clk 0:02:43]} 13. Bd3 {[%clk 0:02:48]}  b5 {[%clk 0:02:28]} 14. Qd2 {[%clk 0:02:24]}  b4 {[%clk 0:02:20]} 15. Nd1 {[%clk 0:02:16]}  Bxd3 {[%clk 0:02:07]} 16. cxd3 {[%clk 0:02:13]}  Nc6 {[%clk 0:02:02]} 17. Ne3 {[%clk 0:02:06]}  a5 {[%clk 0:02:02]} 18. Qf2 {[%clk 0:01:28]}  Ne5 {[%clk 0:01:53]} 19. Qe2 {[%clk 0:01:23]}  a4 {[%clk 0:01:42]} 20. Nd2 {[%clk 0:01:22]}  a3 {[%clk 0:01:33]} 21. b3 {[%clk 0:01:18]}  Rc3 {[%clk 0:01:28]} 22. d4 {[%clk 0:01:16]}  Nc6 {[%clk 0:01:24]} 23. Bxf6 {[%clk 0:01:01]}  Bxf6 {[%clk 0:01:23]} 24. Nd5 {[%clk 0:01:01]}  Nxd4 {[%clk 0:01:17]} 25. Nxf6+ {[%clk 0:01:01]}  exf6 {[%clk 0:01:17]} 26. Qf2 {[%clk 0:01:01]}  Nc2 {[%clk 0:00:54]} 27. Rac1 {[%clk 0:01:00]}  Ne3 {[%clk 0:00:48]} 28. Rxc3 {[%clk 0:00:47]}  Nxf1 {[%clk 0:00:42]} 29. Rd3 {[%clk 0:00:46]}  Nxd2 {[%clk 0:00:39]} 30. Qxd2 {[%clk 0:00:47]}  Qc7 {[%clk 0:00:25]} 31. Rxd6 {[%clk 0:00:43]}  Re8 {[%clk 0:00:20]} 32. fxg6 {[%clk 0:00:36]}  hxg6 {[%clk 0:00:19]} 33. Rd4 {[%clk 0:00:31]}  f5 {[%clk 0:00:14]} 34. exf5 {[%clk 0:00:20]}  Qc3 {[%clk 0:00:14]} 35. h3 {[%clk 0:00:17]}  Qg3 {[%clk 0:00:12]} 36. Rd8 {[%clk 0:00:14]}  Rxd8 {[%clk 0:00:11]} 37. Qxd8+ {[%clk 0:00:15]}  Kg7 {[%clk 0:00:11]} 38. Qd4+ {[%clk 0:00:15]}  Kh7 {[%clk 0:00:11]} 39. fxg6+ {[%clk 0:00:15]}  Qxg6 {[%clk 0:00:10]} 40. Qxb4 {[%clk 0:00:06]}  Qb1+ {[%clk 0:00:09]} 41. Kh2 {[%clk 0:00:07]}  Qxa2 {[%clk 0:00:10]} 42. Qh4+ {[%clk 0:00:07]}  Kg6 {[%clk 0:00:10]} 43. Qg4+ {[%clk 0:00:07]}  Kf6 {[%clk 0:00:10]} 44. Qf4+ {[%clk 0:00:08]}  Kg6 {[%clk 0:00:11]} 45. Qg4+ {[%clk 0:00:08]}  Kf6 {[%clk 0:00:11]} 46. Qf4+ {[%clk 0:00:08]}  Ke6 {[%clk 0:00:12]} 47. Qe4+ {[%clk 0:00:09]}  Kd7 {[%clk 0:00:13]} 48. Qd5+ {[%clk 0:00:09]}  Ke7 {[%clk 0:00:13]} 49. Qe5+ {[%clk 0:00:09]}  Kf8 {[%clk 0:00:13]} 50. Qh8+ {[%clk 0:00:10]}  Ke7 {[%clk 0:00:14]} 51. Qe5+ {[%clk 0:00:10]}  Kd7 {[%clk 0:00:13]} 52. Qd5+ {[%clk 0:00:11]}  Kc7 {[%clk 0:00:13]} 53. Qc5+ {[%clk 0:00:11]}  Kb7 {[%clk 0:00:13]} 54. Qb5+ {[%clk 0:00:12]}  Kc8 {[%clk 0:00:14]} 55. Qe8+ {[%clk 0:00:11]}  Kc7 {[%clk 0:00:14]} 56. Qxf7+ {[%clk 0:00:11]}  Kd6 {[%clk 0:00:15]} 57. Qf6+ {[%clk 0:00:10]}  Kd5 {[%clk 0:00:14]} 58. Qf5+ {[%clk 0:00:09]}  Kd4 {[%clk 0:00:14]} 59. Qf4+ {[%clk 0:00:08]}  Kc3 {[%clk 0:00:14]} 60. Qc4+ {[%clk 0:00:08]}  Kb2 {[%clk 0:00:13]} 61. h4 {[%clk 0:00:05]}  Qxb3 {[%clk 0:00:12]} 62. Qe2+ {[%clk 0:00:04]}  Qc2 {[%clk 0:00:12]} 63. Qb5+ {[%clk 0:00:04]}  Qb3 {[%clk 0:00:11]} 64. Qe2+ {[%clk 0:00:04]}  Kb1 {[%clk 0:00:10]} 65. Qe1+ {[%clk 0:00:04]}  Kb2 {[%clk 0:00:07]} 66. Qd2+ {[%clk 0:00:04]}  Qc2 {[%clk 0:00:07]} 67. Qb4+ {[%clk 0:00:04]}  Ka2 {[%clk 0:00:05]} 68. h5 {[%clk 0:00:04]}  Qc7+ {[%clk 0:00:04]} 69. Kh3 {[%clk 0:00:02]}  Qd7+ {[%clk 0:00:04]} 70. g4 {[%clk 0:00:02]}  Qd3+ {[%clk 0:00:04]} 71. Kh4 {[%clk 0:00:02]}  Qb1 {[%clk 0:00:04]} 72. Qc4+ {[%clk 0:00:02]}  Qb3 {[%clk 0:00:04]} 73. Qe2+ {[%clk 0:00:02]}  Qb2 {[%clk 0:00:03]} 74. Qc4+ {[%clk 0:00:03]}  Kb1 {[%clk 0:00:03]} 75. Qf1+ {[%clk 0:00:03]}  Qc1 {[%clk 0:00:03]} 76. Qb5+ {[%clk 0:00:03]}  Qb2 {[%clk 0:00:02]} 77. Qd3+ {[%clk 0:00:03]}  Kc1 {[%clk 0:00:01]} 78. Qf1+ {[%clk 0:00:03]}  Kc2 {[%clk 0:00:01]} 79. Qe2+ {[%clk 0:00:03]}  Kb1 {[%clk 0:00:02]} 80. Qd1+ {[%clk 0:00:03]}  Qc1 {[%clk 0:00:02]} 81. Qb3+ {[%clk 0:00:04]}  Qb2 {[%clk 0:00:03]} 82. Qd1+ {[%clk 0:00:04]}  Qc1 {[%clk 0:00:03]} 83. Qb3+ {[%clk 0:00:04]}  Qb2 {[%clk 0:00:04]} 84. Qd1+ {[%clk 0:00:04]} 1/2-1/2


[Site "https://www.chess.com"]

[Event "Titled Tuesday Blitz March 21 Early 2023"]
[White "Preotu, Razvan"]
[Black "Begunov, Konstantin"]
[WhiteFideId "2613280"]
[BlackFideId "4118510"]
[WhiteElo "2407"]
[BlackElo "2079"]
[Result "1-0"]
[Round "06"]
[TimeControl "180+2"]
[Date "2023.03.21"]
[WhiteClock "0:00:13"]
[BlackClock "0:00:01"]

1. e4 {[%clk 0:02:57]}  c5 {[%clk 0:02:59]} 2. Nf3 {[%clk 0:02:56]}  d6 {[%clk 0:02:59]} 3. d4 {[%clk 0:02:57]}  cxd4 {[%clk 0:03:00]} 4. Nxd4 {[%clk 0:02:57]}  Nf6 {[%clk 0:03:01]} 5. Nc3 {[%clk 0:02:58]}  a6 {[%clk 0:03:01]} 6. Be3 {[%clk 0:02:59]}  Ng4 {[%clk 0:03:00]} 7. Bg5 {[%clk 0:02:58]}  Nc6 {[%clk 0:03:00]} 8. Nxc6 {[%clk 0:02:41]}  bxc6 {[%clk 0:02:59]} 9. Be2 {[%clk 0:02:41]}  Nf6 {[%clk 0:02:59]} 10. Qd3 {[%clk 0:02:25]}  e5 {[%clk 0:02:54]} 11. O-O-O {[%clk 0:02:25]}  Be7 {[%clk 0:02:51]} 12. f4 {[%clk 0:02:24]}  O-O {[%clk 0:02:46]} 13. fxe5 {[%clk 0:02:21]}  dxe5 {[%clk 0:02:46]} 14. Qg3 {[%clk 0:02:03]}  Qc7 {[%clk 0:02:16]} 15. Rhf1 {[%clk 0:02:02]}  Kh8 {[%clk 0:02:13]} 16. Qh4 {[%clk 0:02:02]}  Ng8 {[%clk 0:01:54]} 17. Bc4 {[%clk 0:02:01]}  Bxg5+ {[%clk 0:01:52]} 18. Qxg5 {[%clk 0:02:01]}  f6 {[%clk 0:01:49]} 19. Qh4 {[%clk 0:01:54]}  Qe7 {[%clk 0:01:44]} 20. Qf2 {[%clk 0:01:39]}  Nh6 {[%clk 0:01:42]} 21. Qd2 {[%clk 0:01:39]}  Bg4 {[%clk 0:01:40]} 22. Qd6 {[%clk 0:01:39]}  Qb7 {[%clk 0:01:29]} 23. Rd2 {[%clk 0:01:33]}  Nf7 {[%clk 0:01:28]} 24. Qc5 {[%clk 0:01:33]}  Ng5 {[%clk 0:01:20]} 25. h3 {[%clk 0:01:16]}  Be6 {[%clk 0:01:18]} 26. Rfd1 {[%clk 0:01:16]}  Bxc4 {[%clk 0:01:01]} 27. Qxc4 {[%clk 0:01:16]}  Rab8 {[%clk 0:01:01]} 28. b3 {[%clk 0:01:16]}  Qb4 {[%clk 0:00:49]} 29. Qxb4 {[%clk 0:00:45]}  Rxb4 {[%clk 0:00:48]} 30. Rd8 {[%clk 0:00:44]}  Kg8 {[%clk 0:00:46]} 31. a3 {[%clk 0:00:42]}  Rb7 {[%clk 0:00:20]} 32. R8d6 {[%clk 0:00:39]}  Rc7 {[%clk 0:00:20]} 33. h4 {[%clk 0:00:36]}  Nf7 {[%clk 0:00:19]} 34. Rd7 {[%clk 0:00:26]}  Rfc8 {[%clk 0:00:19]} 35. Na4 {[%clk 0:00:26]}  a5 {[%clk 0:00:17]} 36. Nb6 {[%clk 0:00:23]}  Rxd7 {[%clk 0:00:15]} 37. Rxd7 {[%clk 0:00:24]}  Rb8 {[%clk 0:00:14]} 38. Nc4 {[%clk 0:00:22]}  h5 {[%clk 0:00:13]} 39. Nxa5 {[%clk 0:00:20]}  c5 {[%clk 0:00:09]} 40. Nb7 {[%clk 0:00:15]}  Rc8 {[%clk 0:00:07]} 41. Rxf7 {[%clk 0:00:13]}  Rb8 {[%clk 0:00:01]} 42. Rc7 {[%clk 0:00:13]}  Kf8 {[%clk 0:00:01]} 43. Nd6 {[%clk 0:00:13]}  Kg8 {[%clk 0:00:01]} 44. Rxc5 {[%clk 0:00:13]} 1-0


[Site "https://www.chess.com"]

[Event "Titled Tuesday Blitz March 21 Early 2023"]
[White "Matinian, Nikita"]
[Black "Lorenzo De La Riva, Lazaro"]
[WhiteFideId "24129100"]
[BlackFideId "2268809"]
[WhiteElo "2422"]
[BlackElo "2294"]
[Result "1-0"]
[Round "06"]
[TimeControl "180+2"]
[Date "2023.03.21"]
[WhiteClock "0:00:15"]
[BlackClock "0:00:05"]

1. e4 {[%clk 0:03:00]}  c5 {[%clk 0:02:59]} 2. Nf3 {[%clk 0:03:00]}  Nc6 {[%clk 0:02:59]} 3. Bb5 {[%clk 0:03:00]}  e5 {[%clk 0:02:59]} 4. Nc3 {[%clk 0:02:58]}  Nge7 {[%clk 0:02:43]} 5. O-O {[%clk 0:02:56]}  g6 {[%clk 0:02:36]} 6. d3 {[%clk 0:02:53]}  Bg7 {[%clk 0:02:35]} 7. Nd5 {[%clk 0:02:50]}  O-O {[%clk 0:02:31]} 8. a4 {[%clk 0:02:48]}  d6 {[%clk 0:02:28]} 9. c3 {[%clk 0:02:39]}  h6 {[%clk 0:02:25]} 10. Re1 {[%clk 0:02:28]}  Be6 {[%clk 0:02:11]} 11. Bc4 {[%clk 0:02:18]}  Kh7 {[%clk 0:02:06]} 12. Be3 {[%clk 0:02:14]}  a6 {[%clk 0:02:00]} 13. d4 {[%clk 0:02:11]}  exd4 {[%clk 0:01:53]} 14. cxd4 {[%clk 0:02:10]}  b6 {[%clk 0:01:28]} 15. Nxe7 {[%clk 0:01:55]}  Nxe7 {[%clk 0:01:25]} 16. d5 {[%clk 0:01:55]}  Bd7 {[%clk 0:01:16]} 17. Qd2 {[%clk 0:01:54]}  b5 {[%clk 0:01:14]} 18. Bf1 {[%clk 0:01:37]}  f5 {[%clk 0:01:02]} 19. e5 {[%clk 0:01:36]}  dxe5 {[%clk 0:00:48]} 20. Bxc5 {[%clk 0:01:35]}  e4 {[%clk 0:00:44]} 21. axb5 {[%clk 0:01:31]}  axb5 {[%clk 0:00:42]} 22. Rxa8 {[%clk 0:01:27]}  Qxa8 {[%clk 0:00:42]} 23. Bxe7 {[%clk 0:01:25]}  Re8 {[%clk 0:00:39]} 24. Ng5+ {[%clk 0:01:07]}  hxg5 {[%clk 0:00:37]} 25. Bxg5 {[%clk 0:01:07]}  Qa2 {[%clk 0:00:32]} 26. Re2 {[%clk 0:01:01]}  Re5 {[%clk 0:00:26]} 27. h4 {[%clk 0:00:51]}  Rxd5 {[%clk 0:00:24]} 28. Qc2 {[%clk 0:00:51]}  Qc4 {[%clk 0:00:19]} 29. g3 {[%clk 0:00:25]}  Qxc2 {[%clk 0:00:18]} 30. Rxc2 {[%clk 0:00:26]}  Rd1 {[%clk 0:00:15]} 31. Kg2 {[%clk 0:00:26]}  b4 {[%clk 0:00:10]} 32. Rc7 {[%clk 0:00:24]}  Kg8 {[%clk 0:00:07]} 33. Bc4+ {[%clk 0:00:24]}  Kf8 {[%clk 0:00:07]} 34. Be3 {[%clk 0:00:23]}  Ke7 {[%clk 0:00:05]} 35. Bb3 {[%clk 0:00:20]}  Be5 {[%clk 0:00:04]} 36. Bg5+ {[%clk 0:00:18]}  Kd6 {[%clk 0:00:04]} 37. Rxd7+ {[%clk 0:00:17]}  Kxd7 {[%clk 0:00:03]} 38. Bxd1 {[%clk 0:00:18]}  Ke6 {[%clk 0:00:03]} 39. b3 {[%clk 0:00:17]}  Kd5 {[%clk 0:00:04]} 40. Be2 {[%clk 0:00:17]}  Kd4 {[%clk 0:00:05]} 41. Bc4 {[%clk 0:00:18]}  Kc3 {[%clk 0:00:05]} 42. Bf7 {[%clk 0:00:18]}  e3 {[%clk 0:00:03]} 43. Bxe3 {[%clk 0:00:17]}  Kd3 {[%clk 0:00:04]} 44. Bxg6 {[%clk 0:00:17]}  Kc3 {[%clk 0:00:05]} 45. Bxf5 {[%clk 0:00:15]} 1-0


[Site "https://www.chess.com"]

[Event "Titled Tuesday Blitz March 21 Early 2023"]
[White "Rozman, Levy"]
[Black "Lwanga, Aguda"]
[WhiteFideId "2039877"]
[BlackFideId "10801529"]
[WhiteElo "2376"]
[BlackElo "1475"]
[Result "1-0"]
[Round "06"]
[TimeControl "180+2"]
[Date "2023.03.21"]
[WhiteClock "0:01:32"]
[BlackClock "0:00:02"]

1. e4 {[%clk 0:02:54]}  e5 {[%clk 0:02:58]} 2. Nc3 {[%clk 0:02:52]}  Nc6 {[%clk 0:02:58]} 3. Bc4 {[%clk 0:02:52]}  Bc5 {[%clk 0:02:56]} 4. Qg4 {[%clk 0:02:51]}  Qf6 {[%clk 0:02:47]} 5. Nd5 {[%clk 0:02:50]}  Qxf2+ {[%clk 0:02:45]} 6. Kd1 {[%clk 0:02:48]}  Kf8 {[%clk 0:02:44]} 7. Nh3 {[%clk 0:02:45]}  Qd4 {[%clk 0:02:41]} 8. d3 {[%clk 0:02:44]}  Nf6 {[%clk 0:02:29]} 9. Qf3 {[%clk 0:02:24]}  Be7 {[%clk 0:02:12]} 10. c3 {[%clk 0:02:19]}  Qc5 {[%clk 0:02:01]} 11. b4 {[%clk 0:02:19]}  Qd6 {[%clk 0:01:58]} 12. Rf1 {[%clk 0:02:19]}  a5 {[%clk 0:01:35]} 13. b5 {[%clk 0:02:16]}  Nd8 {[%clk 0:01:25]} 14. a4 {[%clk 0:02:13]}  Nxd5 {[%clk 0:01:21]} 15. Bxd5 {[%clk 0:02:12]}  Qf6 {[%clk 0:01:04]} 16. Qe2 {[%clk 0:02:09]}  Qg6 {[%clk 0:00:53]} 17. Ng1 {[%clk 0:01:52]}  d6 {[%clk 0:00:48]} 18. Nf3 {[%clk 0:01:51]}  Bg4 {[%clk 0:00:37]} 19. h3 {[%clk 0:01:51]}  Bxf3 {[%clk 0:00:33]} 20. Rxf3 {[%clk 0:01:51]}  c6 {[%clk 0:00:30]} 21. Bc4 {[%clk 0:01:51]}  f6 {[%clk 0:00:17]} 22. Rb1 {[%clk 0:01:46]}  Nf7 {[%clk 0:00:09]} 23. Be3 {[%clk 0:01:46]}  d5 {[%clk 0:00:06]} 24. exd5 {[%clk 0:01:43]}  e4 {[%clk 0:00:04]} 25. Rf4 {[%clk 0:01:32]}  exd3 {[%clk 0:00:01]} 26. Bxd3 {[%clk 0:01:32]}  cxd5 {[%clk 0:00:02]} 1-0


[Site "https://www.chess.com"]

[Event "Titled Tuesday Blitz March 21 Early 2023"]
[White "Karthik Rajaa"]
[Black "Mackster23"]
[WhiteFideId "25035215"]
[WhiteElo "2215"]
[BlackElo "2538"]
[Result "1-0"]
[Round "06"]
[TimeControl "180+2"]
[Date "2023.03.21"]
[WhiteClock "0:00:16"]
[BlackClock "0:00:02"]

1. Nf3 {[%clk 0:02:58]}  e6 {[%clk 0:02:57]} 2. c4 {[%clk 0:02:56]}  f5 {[%clk 0:02:57]} 3. Nc3 {[%clk 0:02:55]}  Nf6 {[%clk 0:02:57]} 4. g3 {[%clk 0:02:55]}  g6 {[%clk 0:02:57]} 5. Bg2 {[%clk 0:02:55]}  Bg7 {[%clk 0:02:58]} 6. d3 {[%clk 0:02:55]}  O-O {[%clk 0:02:53]} 7. e4 {[%clk 0:02:54]}  d6 {[%clk 0:02:51]} 8. exf5 {[%clk 0:02:52]}  gxf5 {[%clk 0:02:48]} 9. d4 {[%clk 0:02:52]}  Ne4 {[%clk 0:02:29]} 10. O-O {[%clk 0:02:44]}  Nxc3 {[%clk 0:02:26]} 11. bxc3 {[%clk 0:02:43]}  Qf6 {[%clk 0:02:22]} 12. Re1 {[%clk 0:02:36]}  Nd7 {[%clk 0:01:58]} 13. c5 {[%clk 0:02:30]}  dxc5 {[%clk 0:01:43]} 14. Bf4 {[%clk 0:02:30]}  c6 {[%clk 0:01:30]} 15. Rb1 {[%clk 0:02:25]}  cxd4 {[%clk 0:01:28]} 16. cxd4 {[%clk 0:02:24]}  Nb6 {[%clk 0:01:08]} 17. Be5 {[%clk 0:02:20]}  Qe7 {[%clk 0:01:06]} 18. Bxg7 {[%clk 0:02:15]}  Qxg7 {[%clk 0:01:06]} 19. a4 {[%clk 0:02:08]}  Nd5 {[%clk 0:00:54]} 20. Qb3 {[%clk 0:02:08]}  b6 {[%clk 0:00:50]} 21. Ne5 {[%clk 0:02:07]}  Bd7 {[%clk 0:00:48]} 22. Rbc1 {[%clk 0:02:02]}  Rac8 {[%clk 0:00:48]} 23. Qa3 {[%clk 0:02:02]}  Rfd8 {[%clk 0:00:43]} 24. Bxd5 {[%clk 0:01:06]}  exd5 {[%clk 0:00:25]} 25. a5 {[%clk 0:01:06]}  Qf8 {[%clk 0:00:23]} 26. Qa2 {[%clk 0:00:58]}  Qf6 {[%clk 0:00:21]} 27. axb6 {[%clk 0:00:55]}  axb6 {[%clk 0:00:22]} 28. Qa7 {[%clk 0:00:54]}  Be8 {[%clk 0:00:18]} 29. Qxb6 {[%clk 0:00:51]}  Rd6 {[%clk 0:00:15]} 30. Qb7 {[%clk 0:00:48]}  Rcd8 {[%clk 0:00:13]} 31. Ra1 {[%clk 0:00:45]}  Re6 {[%clk 0:00:12]} 32. Ra7 {[%clk 0:00:41]}  Qh6 {[%clk 0:00:10]} 33. Qc7 {[%clk 0:00:34]}  Red6 {[%clk 0:00:09]} 34. Nd3 {[%clk 0:00:29]}  Bh5 {[%clk 0:00:06]} 35. Re7 {[%clk 0:00:26]}  Bg6 {[%clk 0:00:04]} 36. Nf4 {[%clk 0:00:20]}  Qf8 {[%clk 0:00:02]} 37. Rxh7 {[%clk 0:00:16]} 1-0


[Site "https://www.chess.com"]

[Event "Titled Tuesday Blitz March 21 Early 2023"]
[White "Omelja, Artem"]
[Black "Darini, Pouria"]
[WhiteFideId "14119846"]
[BlackFideId "12502200"]
[WhiteElo "2404"]
[BlackElo "2482"]
[Result "1-0"]
[Round "06"]
[TimeControl "180+2"]
[Date "2023.03.21"]
[WhiteClock "0:01:17"]
[BlackClock "0:00:18"]

1. e4 {[%clk 0:03:00]}  c5 {[%clk 0:02:59]} 2. Nf3 {[%clk 0:02:59]}  Nc6 {[%clk 0:02:59]} 3. Bb5 {[%clk 0:02:59]}  e6 {[%clk 0:02:59]} 4. O-O {[%clk 0:02:59]}  Nge7 {[%clk 0:03:00]} 5. c3 {[%clk 0:02:58]}  a6 {[%clk 0:03:00]} 6. Ba4 {[%clk 0:02:58]}  b5 {[%clk 0:02:56]} 7. Bc2 {[%clk 0:02:59]}  Bb7 {[%clk 0:02:53]} 8. d4 {[%clk 0:02:58]}  cxd4 {[%clk 0:02:53]} 9. Nxd4 {[%clk 0:02:58]}  Ng6 {[%clk 0:02:41]} 10. Be3 {[%clk 0:02:49]}  Nge5 {[%clk 0:02:08]} 11. Nd2 {[%clk 0:02:46]}  h5 {[%clk 0:02:08]} 12. h3 {[%clk 0:02:43]}  g5 {[%clk 0:02:08]} 13. Nxc6 {[%clk 0:02:11]}  Bxc6 {[%clk 0:02:00]} 14. Bd4 {[%clk 0:02:10]}  f6 {[%clk 0:01:45]} 15. Nf3 {[%clk 0:02:00]}  Bd6 {[%clk 0:01:26]} 16. Nxe5 {[%clk 0:01:56]}  Bxe5 {[%clk 0:01:25]} 17. Bxe5 {[%clk 0:01:55]}  fxe5 {[%clk 0:01:26]} 18. Qd6 {[%clk 0:01:55]}  Qf6 {[%clk 0:01:15]} 19. f3 {[%clk 0:01:44]}  Qf4 {[%clk 0:01:04]} 20. Rad1 {[%clk 0:01:43]}  g4 {[%clk 0:00:51]} 21. Qd2 {[%clk 0:01:40]}  gxh3 {[%clk 0:00:43]} 22. Qxf4 {[%clk 0:01:37]}  exf4 {[%clk 0:00:43]} 23. Kh2 {[%clk 0:01:21]}  hxg2 {[%clk 0:00:39]} 24. Rg1 {[%clk 0:01:22]}  Ke7 {[%clk 0:00:37]} 25. Rxg2 {[%clk 0:01:21]}  Rag8 {[%clk 0:00:37]} 26. Rdg1 {[%clk 0:01:21]}  Rxg2+ {[%clk 0:00:23]} 27. Rxg2 {[%clk 0:01:21]}  Kf6 {[%clk 0:00:22]} 28. Kh3 {[%clk 0:01:18]}  Rh6 {[%clk 0:00:18]} 29. Kh4 {[%clk 0:01:17]}  Rg6 {[%clk 0:00:18]} 30. e5+ {[%clk 0:01:17]} 1-0


[Site "https://www.chess.com"]

[Event "Titled Tuesday Blitz March 21 Early 2023"]
[White "Vaglio Munoz, Jaime"]
[Black "Fromm, Marius"]
[WhiteFideId "6500145"]
[BlackFideId "12993190"]
[WhiteElo "2199"]
[BlackElo "2325"]
[Result "1-0"]
[Round "06"]
[TimeControl "180+2"]
[Date "2023.03.21"]
[WhiteClock "0:00:16"]
[BlackClock "0:00:02"]

1. Nf3 {[%clk 0:03:00]}  c5 {[%clk 0:03:00]} 2. c4 {[%clk 0:03:00]}  Nc6 {[%clk 0:03:00]} 3. b3 {[%clk 0:03:00]}  e5 {[%clk 0:02:58]} 4. Bb2 {[%clk 0:02:59]}  e4 {[%clk 0:02:53]} 5. Ne5 {[%clk 0:02:59]}  Nf6 {[%clk 0:02:50]} 6. Nxc6 {[%clk 0:02:55]}  dxc6 {[%clk 0:02:51]} 7. g3 {[%clk 0:02:54]}  Bf5 {[%clk 0:02:49]} 8. Bg2 {[%clk 0:02:54]}  h5 {[%clk 0:02:49]} 9. h3 {[%clk 0:02:53]}  Bd6 {[%clk 0:02:34]} 10. Nc3 {[%clk 0:02:47]}  Qe7 {[%clk 0:02:34]} 11. e3 {[%clk 0:02:45]}  O-O-O {[%clk 0:02:29]} 12. Qc2 {[%clk 0:02:44]}  Be5 {[%clk 0:02:22]} 13. O-O-O {[%clk 0:02:43]}  Rd3 {[%clk 0:02:21]} 14. Bf1 {[%clk 0:02:28]}  Rd7 {[%clk 0:02:20]} 15. f3 {[%clk 0:02:21]}  Qe6 {[%clk 0:01:50]} 16. f4 {[%clk 0:02:20]}  Bc7 {[%clk 0:01:47]} 17. Na4 {[%clk 0:02:01]}  b6 {[%clk 0:01:45]} 18. Bxf6 {[%clk 0:01:41]}  Qxf6 {[%clk 0:01:35]} 19. Qc3 {[%clk 0:01:41]}  Qg6 {[%clk 0:01:28]} 20. Rg1 {[%clk 0:01:36]}  Bd8 {[%clk 0:01:24]} 21. Qb2 {[%clk 0:01:33]}  Bf6 {[%clk 0:01:24]} 22. Nc3 {[%clk 0:01:32]}  Bxc3 {[%clk 0:00:54]} 23. Qxc3 {[%clk 0:01:31]}  f6 {[%clk 0:00:47]} 24. g4 {[%clk 0:01:20]}  hxg4 {[%clk 0:00:46]} 25. hxg4 {[%clk 0:01:20]}  Bxg4 {[%clk 0:00:46]} 26. Be2 {[%clk 0:01:20]}  Rh4 {[%clk 0:00:43]} 27. Rg2 {[%clk 0:01:10]}  Qh5 {[%clk 0:00:40]} 28. Bxg4 {[%clk 0:01:06]}  Rxg4 {[%clk 0:00:41]} 29. Rf2 {[%clk 0:01:04]}  Kb7 {[%clk 0:00:39]} 30. f5 {[%clk 0:01:03]}  Rd3 {[%clk 0:00:29]} 31. Qb2 {[%clk 0:00:58]}  Qh3 {[%clk 0:00:17]} 32. b4 {[%clk 0:00:53]}  cxb4 {[%clk 0:00:17]} 33. Qxb4 {[%clk 0:00:53]}  c5 {[%clk 0:00:14]} 34. Qb5 {[%clk 0:00:53]}  Qh5 {[%clk 0:00:15]} 35. a4 {[%clk 0:00:34]}  Qf7 {[%clk 0:00:04]} 36. a5 {[%clk 0:00:31]}  Ra3 {[%clk 0:00:05]} 37. axb6 {[%clk 0:00:17]}  axb6 {[%clk 0:00:06]} 38. d4 {[%clk 0:00:17]}  Ra5 {[%clk 0:00:02]} 39. Qb3 {[%clk 0:00:16]}  Rg3 {[%clk 0:00:02]} 40. Rb2 {[%clk 0:00:16]} 1-0


[Site "https://www.chess.com"]